[Event "CCC-GM 2022"]
[Site "Ballerup"]
[Date "2022.05.29"]
[Round "8.5"]
[White "Nielsen, Viktor Haarmark"]
[Black "Haubro, Martin"]
[Result "1/2-1/2"]
[ECO "C84"]
[WhiteElo "2323"]
[BlackElo "2428"]
[Annotator "TA"]
[PlyCount "145"]
[EventDate "2022.05.25"]
[EventType "tourn"]
[EventCountry "DEN"]
[SourceTitle "playchess.com"]
[Source "ChessBase"]
[SourceQuality "1"]
[TimeControl "5400+30"]

{[%evp 15,145,18,22,14,17,16,29,26,25,20,31,25,29,39,32,31,24,0,28,23,25,0,6,14,3,14,16,12,121,114,130,97,101,83,76,31,22,22,27,29,30,8,36,0,0,0,43,40,90,23,71,0,0,0,0,0,0,0,0,-2,-8,-10,0,0,0,0,0,0,0,0,8,8,8,8,8,0,0,0,0,0,0,0,0,0,0,0,0,0,0,0,7,7,7,7,7,7,7,7,7,7,7,7,7,7,7,7,7,7,7,7,7,7,7,7,7,7,7,7,7,7,7,7,7,7,7,7,7,0,7,7,8,0]} 1. e4 {[%emt 0:00:02]} e5 {[%emt 0:00:03]} 2. Nf3 {[%emt 0:00:05]} Nc6 {[%emt 0:00:05]} 3. Bb5 {[%emt 0:00:04]} a6 {[%emt 0:00:03]} 4. Ba4 {[%emt 0:00:04]} Nf6 {[%emt 0:00:04]} 5. O-O {[%emt 0:00:06]} Be7 {[%emt 0:00:03]} 6. d3 {[%emt 0:00:30]} b5 {[%emt 0:00:23]} 7. Bb3 {[%emt 0:00:04]} d6 {[%emt 0:00:04]} 8. c3 {[%emt 0:00:16]} O-O {[%emt 0:00:08]} 9. a4 {[%emt 0:00:03] 9.h3 is the modern continuation. C84: Closed Ruy Lopez: Unusual White 6th moves.} Bd7 {[%emt 0:01:54]} 10. Bc2 {[%emt 0:00:24]} Re8 {[%emt 0:03:28]} 11. Re1 {[%emt 0:00:43] White has an edge.} Bf8 {[%emt 0:03:36]} 12. Bg5 {[%emt 0:01:06]} h6 {[%emt 0:00:24]} (12... b4 {keeps more tension.} 13. Nbd2 h6 14. Bxf6 Qxf6 15. a5 Qd8) 13. axb5 {[%emt 0:00:19]} axb5 {[%emt 0:22:08]} 14. Rxa8 {[%emt 0:02:00]} Qxa8 {[%emt 0:00:04]} 15. Bxf6 {[%emt 0:00:11]} gxf6 {[%emt 0:00:03] [#]} 16. d4 $146 {[%emt 0:18:20]} ({Predecessor:} 16. Nh4 Qa1 17. b4 Ne7 18. Bb3 Bg7 19. h3 c5 20. bxc5 dxc5 21. Kh2 Ra8 22. Re3 {1-0 (83) Grischuk,A (2764)-Kamsky,G (2762) Beijing 2012}) 16... Bg7 {[%emt 0:03:45]} 17. dxe5 {[%emt 0:10:52]} fxe5 {[%emt 0:00:34]} 18. Na3 {[%emt 0:00:10][%cal Bb1a3,Ba3c4,Bc4e3,Be3d5,Bd5b4][%mdl 32]} b4 {[%emt 0:06:09]} 19. Nc4 {[%emt 0:00:24]} bxc3 {[%emt 0:03:03]} 20. bxc3 {[%emt 0:00:10]} Be6 {[%emt 0:19:55]} 21. Ne3 {[%emt 0:02:22]} Qa5 {[%emt 0:00:25]} (21... Rb8 $11 {keeps the balance.}) 22. Ba4 $1 $16 {[%emt 0:02:14]} Bd7 {[%emt 0:01:46]} (22... Qxc3 $2 23. Re2 $18) 23. Nd5 {[%emt 0:02:55]} Kh8 {[%emt 0:07:40]} 24. Nb4 {[%emt 0:07:29]} Qc5 {[%emt 0:03:47]} 25. Qd5 {[%emt 0:23:41]} Qxd5 {[%emt 0:01:32]} 26. Nxd5 {[%emt 0:00:23]} Ra8 {[%emt 0:00:36]} 27. Bb5 {[%emt 0:00:49]} Ra7 {[%emt 0:02:36]} 28. Nd2 {[%emt 0:02:36]} Rb7 {[%emt 0:01:17]} 29. Ba4 {[%emt 0:00:44]} Ra7 {[%emt 0:00:07]} 30. Bb5 {[%emt 0:00:09]} Rb7 {[%emt 0:00:07]} 31. Rb1 {[%emt 0:01:44]} h5 {[%emt 0:05:31]} (31... Ra7 $14) 32. g3 {[%emt 0:08:15] White is more active.} (32. Be2 $16 Ra7 33. Bxh5) 32... Bh6 {[%emt 0:03:47] [#]} (32... Ra7 $11 {is superior.}) 33. f4 {[%emt 0:00:21]} (33. Be2 $1 $16 Nd8 (33... Na5 34. Rxb7) 34. Rxb7 Nxb7 35. Nc4) 33... exf4 $11 {[%emt 0:00:24] The position is equal.} 34. gxf4 {[%emt 0:00:45]} Nb8 {[%emt 0:00:27]} 35. Bxd7 {[%emt 0:00:36]} Rxb1+ {[%emt 0:00:03]} 36. Nxb1 {[%emt 0:00:07] aiming for Be8.} Nxd7 {[%emt 0:00:03]} 37. Nxc7 {[%emt 0:05:46]} Bxf4 {[%emt 0:05:53][%mdl 4096] Endgame KBN-KNN} 38. Nd5 {[%emt 0:00:23] Inhibits Nf6.} Be5 {[%emt 0:00:04]} 39. Nd2 {[%emt 0:02:27]} Kg7 {[%emt 0:03:28]} 40. Kg2 {[%emt 0:01:11]} Nf6 {[%emt 0:01:14]} 41. c4 {[%emt 0:02:47]} Nd7 {[%emt 0:01:59]} 42. Nf3 {[%emt 0:01:14]} Bf6 {[%emt 0:01:22]} 43. Ne3 {[%emt 0:00:26]} Be7 {[%emt 0:00:55]} 44. Nd4 {[%emt 0:00:37]} Bf8 {[%emt 0:00:18]} 45. Kf3 {[%emt 0:04:08]} Kf6 {[%emt 0:00:18]} 46. Nd5+ {[%emt 0:00:24]} Kg5 {[%emt 0:00:25]} 47. Kg3 {[%emt 0:01:39]} h4+ {[%emt 0:00:15]} 48. Kg2 {[%emt 0:00:08]} Ne5 {[%emt 0:00:28]} 49. Nf3+ {[%emt 0:00:17]} Nxf3 {[%emt 0:00:43]} 50. Kxf3 {[%emt 0:00:02] KB-KN} Bg7 {[%emt 0:00:47]} 51. h3 {[%emt 0:00:06]} Be5 {[%emt 0:00:27]} 52. Ne3 {[%emt 0:02:15]} f6 {[%emt 0:00:15]} 53. Nf5 {[%emt 0:00:18]} Kh5 {[%emt 0:00:31]} 54. Ng7+ {[%emt 0:00:52]} Kg5 {[%emt 0:00:06]} 55. Ne6+ {[%emt 0:00:07]} Kh5 $1 {[%emt 0:00:04]} 56. Nd8 {[%emt 0:00:23]} Kg5 {[%emt 0:00:35]} 57. Nc6 {[%emt 0:01:31]} Kh5 {[%emt 0:00:11]} 58. Nb4 {[%emt 0:00:21]} Kg5 {[%emt 0:00:08]} 59. Nd3 {[%emt 0:00:04]} Kh5 {[%emt 0:00:27]} 60. Kf2 $1 {[%emt 0:00:42]} Kg5 {[%emt 0:00:16]} 61. Ke3 {[%emt 0:00:03]} Kh5 {[%emt 0:00:40]} 62. Ne1 {[%emt 0:00:07]} Kg5 {[%emt 0:02:12]} 63. Nf3+ {[%emt 0:00:06]} Kh5 {[%emt 0:00:04]} 64. Kd3 {[%emt 0:00:14]} Ba1 {[%emt 0:00:08]} 65. Kd2 {[%emt 0:00:22]} Bb2 {[%emt 0:00:11]} 66. Kc2 {[%emt 0:00:36]} Be5 {[%emt 0:00:35]} 67. Kb3 {[%emt 0:00:26]} Bg3 {[%emt 0:00:19]} 68. Kc3 {[%emt 0:00:05]} Bf2 {[%emt 0:00:46]} 69. Kd3 {[%emt 0:01:41]} Bc5 {[%emt 0:00:21]} 70. Ke2 {[%emt 0:00:51]} Bb6 {[%emt 0:00:13]} 71. Kd3 {[%emt 0:01:10]} Bf2 {[%emt 0:00:06]} 72. Kc3 {[%emt 0:00:23]} Kg6 {[%emt 0:01:16]} 73. Kd3 {[%emt 0:00:12] Weighted Error Value: White=0.09 (flawless) /Black=0.09 (flawless)} 1/2-1/2

[Event "CCC-GM 2022"]
[Site "Ballerup"]
[Date "2022.05.29"]
[Round "9.1"]
[White "Heimisson, Hilmir Freyr"]
[Black "Nielsen, Viktor Haarmark"]
[Result "1-0"]
[ECO "A34"]
[WhiteElo "2323"]
[BlackElo "2323"]
[Annotator "TA"]
[PlyCount "71"]
[EventDate "2022.05.25"]
[EventType "tourn"]
[EventCountry "DEN"]
[SourceTitle "playchess.com"]
[Source "ChessBase"]
[SourceQuality "1"]
[TimeControl "5400+30"]

{[%evp 16,71,40,27,21,48,109,65,99,110,107,95,120,112,203,121,121,120,114,68,54,52,122,95,190,180,174,178,172,166,344,347,629,635,864,860,884,129,128,94,72,92,89,87,118,126,123,120,118,112,137,142,189,179,1068,1053,5081,886]} 1. c4 {[%emt 0:01:17] ChessBase II} Nf6 {[%emt 0:00:51]} 2. Nc3 {[%emt 0:01:21]} d5 {[%emt 0:01:15]} 3. cxd5 {[%emt 0:03:44]} Nxd5 {[%emt 0:00:57]} 4. g3 {[%emt 0:00:56]} c5 {[%emt 0:04:35]} 5. Bg2 {[%emt 0:02:07]} Nc7 {[%emt 0:00:06]} 6. Nf3 {[%emt 0:02:21]} Nc6 {[%emt 0:00:19]} 7. O-O {[%emt 0:02:57]} e5 {[%emt 0:01:17]} 8. a3 {[%emt 0:05:05][%cal Ba2a3,Ba3b4][%mdl 32]} Be7 {[%emt 0:08:55]} 9. b4 $1 {[%emt 0:04:52]} cxb4 {[%emt 0:02:43] A34: Symmetrical English: 2 Nc3, lines with ...d5.} 10. axb4 {[%emt 0:00:25]} b5 {[%emt 0:01:56] [#]} (10... a6 $14) 11. Bb2 $146 {[%emt 0:11:00]} ({Predecessor:} 11. Ne1 Bd7 12. Nd3 O-O 13. Bb2 f6 14. Nd5 Nxd5 15. Bxd5+ Kh8 16. Qb3 a5 17. bxa5 Rxa5 18. Rxa5 Nxa5 {½-½ (29) Heinz,T (2350)-Heinzel,O (2353) Luxembourg 2014 EXT 2017 [ChessBase II]}) 11... Rb8 {[%emt 0:06:36] White is slightly better.} 12. Ne4 {[%emt 0:05:57]} f6 {[%emt 0:03:28]} 13. Qc1 {[%emt 0:12:00]} Bb7 {[%emt 0:04:09]} 14. d4 $36 {[%emt 0:00:30][%mdl 2048] White has strong initiative.} Nxb4 {[%emt 0:07:47] [#]} (14... exd4 $16 {might work better.} 15. Nxd4 Nxd4 16. Bxd4 Qxd4) 15. Nc5 {[%emt 0:02:09]} (15. Rxa7 $6 O-O $16) (15. Nh4 $1 $18 exd4 16. Nf5 (16. Rxa7 d3 $14)) 15... Bxc5 $16 {[%emt 0:05:33]} 16. Qxc5 {[%emt 0:03:06]} Nba6 {[%emt 0:01:00]} 17. Qxa7 {[%emt 0:02:10]} (17. Qa3 $16) 17... e4 $14 {[%emt 0:00:34]} 18. Nd2 {[%emt 0:02:11]} Bd5 {[%emt 0:00:37]} ({Black should play} 18... f5 $14) 19. Bxe4 $16 {[%emt 0:13:52]} (19. Rxa6 $6 Ra8 $14) 19... Rb7 {[%emt 0:03:37]} (19... Bxe4 $16 20. Nxe4 O-O) 20. Qxb7 $18 {[%emt 0:00:07]} (20. Rxa6 Rxa7 21. Rxa7 Bxe4 22. Nxe4 O-O $11) 20... Bxb7 {[%emt 0:00:04]} 21. Bxb7 {[%emt 0:00:06] This bishop pair is nice.} Qd6 {[%emt 0:02:22][%cal Od6b4]} 22. Rfc1 {[%emt 0:03:28]} Nb8 {[%emt 0:02:44]} (22... O-O 23. Bg2 Rd8) 23. Ne4 {[%emt 0:07:15]} Qe7 {[%emt 0:04:54]} (23... Qb6 24. Rxc7 Qxc7) 24. Ra7 {[%emt 0:02:56]} b4 {[%emt 0:05:36] [#]} 25. d5 $1 {[%emt 0:06:19]} Nb5 {[%emt 0:02:18]} (25... Qd8 26. Bc6+) 26. d6 $2 {[%emt 0:01:09]} (26. Rc8+ $18 {and the rest is easy.} Kf7 27. d6 (27. Rxh8 Nxa7 28. f3 Qc7 $11) 27... Nxa7 28. Bd5+ (28. dxe7 Nxc8 29. Bxc8 Kxe7 $16) 28... Kg6 29. Rxh8 (29. dxe7 Nxc8 30. Bc4 Nc6 $17)) 26... Qd7 $16 {[%emt 0:01:51] [#]} 27. Bc6 $1 {[%emt 0:04:00][%mdl 512] White is much more active. The black rooks are badly placed.} Nxc6 {[%emt 0:00:30]} 28. Rxd7 {[%emt 0:00:11] Really sharp!} Kxd7 {[%emt 0:00:07]} 29. Rd1 {[%emt 0:00:30]} Nd8 {[%emt 0:05:26]} 30. Rd5 {[%emt 0:00:35]} Kc6 {[%emt 0:02:47]} 31. Rc5+ {[%emt 0:00:01]} Kb6 {[%emt 0:00:11][%cal Ob5d6] Threatens to win with ...Nxd6!} 32. Rc4 {[%emt 0:01:04]} Nc6 {[%emt 0:01:06] [#]} 33. Bc1 $1 {[%emt 0:00:10]} b3 {[%emt 0:02:30]} (33... Ra8 $16 {keeps fighting.} 34. Be3+ Kb7) 34. Be3+ $18 {[%emt 0:00:52]} Ka5 $2 {[%emt 0:05:23]} (34... Kb7 35. Nc5+ Kc8) 35. Rxc6 {[%emt 0:00:22]} b2 {[%emt 0:00:22]} 36. Nd2 {[%emt 0:00:31] Weighted Error Value: White=0.42/Black=0.43} 1-0

[Event "CCC-GM 2022"]
[Site "Ballerup"]
[Date "2022.05.29"]
[Round "9.2"]
[White "Blomqvist, Erik"]
[Black "Olsen, Filip Boe"]
[Result "0-1"]
[ECO "A05"]
[WhiteElo "2523"]
[BlackElo "2407"]
[Annotator "TA"]
[PlyCount "108"]
[EventDate "2022.05.25"]
[EventType "tourn"]
[EventCountry "DEN"]
[SourceTitle "playchess.com"]
[Source "ChessBase"]
[SourceQuality "1"]
[TimeControl "5400+30"]

{[%evp 11,107,25,28,0,-4,-3,53,56,42,0,15,20,32,-147,-133,-156,-119,-117,-104,-99,-102,-88,-95,-102,-103,-136,-136,-150,-138,-191,-179,-201,-186,-197,-186,-235,-217,-378,-381,-369,-93,-106,-63,-71,-66,-62,-59,-70,-69,-84,-69,-89,-8,-12,0,0,0,0,0,0,0,0,0,-253,-250,-253,-244,-243,-227,-326,-309,-455,-455,-642,-227,-180,0,-625,-519,-883,-878,-865,-843,-939,-936,-1061,-1058,-901,-817,-937,-937,-745,-2012,-1375,-1291,-29998,-29999,-29999]} 1. Nf3 {[%emt 0:00:06]} Nf6 {[%emt 0:00:10]} 2. g3 {[%emt 0:00:07]} b5 {[%emt 0:00:09]} 3. Bg2 {[%emt 0:00:49]} Bb7 {[%emt 0:00:10]} 4. O-O {[%emt 0:00:11]} e6 {[%emt 0:00:23]} 5. d3 {[%emt 0:00:14]} c5 {[%emt 0:00:31]} 6. e4 {[%emt 0:00:24]} d6 {[%emt 0:00:12]} 7. d4 {[%emt 0:01:38] [#] A05: Réti Opening: 1 Nf3 Nf6.} cxd4 $146 {[%emt 0:14:13]} ({Predecessor:} 7... Nbd7 8. e5 Nd5 9. Qe2 b4 10. c4 bxc3 11. Nxc3 Nxc3 12. bxc3 Qc8 13. d5 Bxd5 14. Rd1 Nb6 15. exd6 Bxd6 {1-0 (51) Yilmazyerli,M (2493)-Yurtseven,M (2388) Ayvalik 2022}) 8. Nxd4 {[%emt 0:00:48]} a6 {[%emt 0:03:30]} (8... Bxe4 $11 9. Bxe4 (9. Nxb5 Bxg2 10. Kxg2 a6 $11) 9... Nxe4) 9. Re1 $14 {[%emt 0:01:01] White is slightly better.} Qc7 {[%emt 0:11:28]} 10. Nc3 {[%emt 0:03:42][%cal Oc3d5]} Be7 {[%emt 0:01:23]} 11. a4 {[%emt 0:03:43]} bxa4 {[%emt 0:02:42]} 12. Nd5 $2 {[%emt 0:10:09]} exd5 $17 {[%emt 0:13:37]} 13. exd5 {[%emt 0:00:26]} Bc8 {[%emt 0:03:19][%cal Bb7c8,Bc8g4,Bg4h5][%mdl 32] Against Nf5} (13... Bxd5 $2 14. Nf5 Bxg2 15. Rxe7+ Qxe7 16. Nxe7 Kxe7 17. Qe1+ Kd8 18. Qa5+ Ke7 19. Qe1+ Be4 20. Bg5 $18) 14. Qe2 {[%emt 0:11:25]} Ra7 {[%emt 0:07:22]} 15. Rxa4 {[%emt 0:02:12]} O-O {[%emt 0:02:03]} 16. Rc4 {[%emt 0:33:11]} Qd8 {[%emt 0:10:12]} 17. Rb4 {[%emt 0:01:45]} Bg4 {[%emt 0:02:42]} 18. Qe3 {[%emt 0:05:13][%cal Ob4b8]} Rc7 $1 {[%emt 0:03:53]} 19. Bd2 {[%emt 0:04:37]} Re8 {[%emt 0:02:40]} 20. Qa3 {[%emt 0:03:15]} (20. h3 $17 a5 21. Rb6) 20... Bf8 $19 {[%emt 0:00:56]} 21. Rxe8 {[%emt 0:04:19]} Qxe8 {[%emt 0:00:10]} 22. h3 {[%emt 0:00:02]} Bh5 {[%emt 0:01:17]} 23. c4 {[%emt 0:01:34]} (23. f4 $142) 23... Nbd7 {[%emt 0:01:36]} 24. Qxa6 $2 {[%emt 0:01:31]} (24. Bf1) 24... Ne4 {[%emt 0:02:06]} 25. Be3 {[%emt 0:05:07] [#]} Ndc5 $2 {[%emt 0:06:04]} (25... Nxg3 $1 $19 {[%mdl 512] has better winning chances. Threatens to win with ...Ne2+.} 26. b3 (26. Qa2 Ne2+) 26... Rc8 $1) 26. Qb5 $17 {[%emt 0:02:40]} Qa8 {[%emt 0:05:08] Hoping for ...Qa1+.} 27. Qb8 {[%emt 0:01:06] [#]} Rc8 $1 {[%emt 0:00:47]} 28. Qxa8 {[%emt 0:00:52]} Rxa8 {[%emt 0:00:03]} 29. Rb5 {[%emt 0:01:20]} Bg6 {[%emt 0:01:38]} 30. Nc6 {[%emt 0:00:22]} Nd3 {[%emt 0:01:02]} 31. Bf1 {[%emt 0:00:50]} Ra1 {[%emt 0:03:12]} ({Black should try} 31... Ne1 $17 {[%cal Oe4d2] aiming for ...Nd2!} 32. Be2 Nc2) 32. Rb8 $11 {[%emt 0:00:07] Ne7+ would kill now.} f5 {[%emt 0:00:09]} 33. Nd8 {[%emt 0:01:07] Strongly threatening Ne6.} Be7 {[%emt 0:00:40]} 34. Nc6+ {[%emt 0:00:24]} Bf8 {[%emt 0:00:45]} 35. Nd8 {[%emt 0:00:33] Black must now prevent Ne6.} Be7 {[%emt 0:01:06]} 36. Nc6+ {[%emt 0:00:14]} Bf8 {[%emt 0:00:12]} 37. Ne7+ $2 {[%emt 0:00:38][%mdl 8192]} (37. Nd8 $11 Nf6 38. Ne6) 37... Kf7 $19 {[%emt 0:00:07]} 38. Nxg6 {[%emt 0:00:24]} hxg6 {[%emt 0:00:05]} 39. b4 {[%emt 0:01:07]} Rb1 {[%emt 0:00:39] And now ...g5 would win.} 40. b5 {[%emt 0:00:45]} (40. Rb7+ $142 Kg8 41. b5) 40... g5 {[%emt 0:00:57] ...f4 is the strong threat.} 41. Kg2 {[%emt 0:00:28]} (41. Ra8 {was called for.}) 41... Ne1+ {[%emt 0:00:11]} 42. Kh2 {[%emt 0:00:21]} (42. Kg1 $142 Nc2 43. Kg2) 42... Nf3+ $2 {[%emt 0:00:59]} (42... f4 43. gxf4 Nf3+ 44. Kg2 Nh4+ 45. Kg1 Nf3+ 46. Kg2 Nh4+ 47. Kh2 gxf4 48. Bxf4 Rxf1) 43. Kg2 {[%emt 0:00:03]} Ne1+ $2 {[%emt 0:00:07]} (43... g4 44. hxg4 fxg4 45. Rb7+ Be7) 44. Kh2 {[%emt 0:00:02]} Rb2 {[%emt 0:00:43]} 45. Kg1 {[%emt 0:01:37]} (45. Bg2 $142 Nxf2 46. Bd4) 45... f4 {[%emt 0:00:51]} 46. gxf4 {[%emt 0:00:15]} gxf4 {[%emt 0:00:01]} 47. Rb7+ {[%emt 0:00:43]} Be7 {[%emt 0:01:01]} 48. Bb6 {[%emt 0:00:25]} Nf3+ {[%emt 0:00:39]} 49. Kg2 {[%emt 0:00:15]} Nh4+ {[%emt 0:00:14]} 50. Kg1 {[%emt 0:00:11]} Rb1 {[%emt 0:00:32] ( -> ...Nd2)} 51. Bd8 {[%emt 0:00:40] [#]} Nd2 $1 {[%emt 0:00:24][%csl LRc4,LRf1]} 52. Rxe7+ {[%emt 0:00:34]} Kf8 {[%emt 0:00:10]} 53. f3 {[%emt 0:00:57]} Rxf1+ {[%emt 0:00:11]} 54. Kh2 {[%emt 0:00:02]} Ndxf3# {[%emt 0:00:08] Weighted Error Value: White=0.54/Black=0.34} 0-1

[Event "CCC-GM 2022"]
[Site "Ballerup"]
[Date "2022.05.29"]
[Round "9.3"]
[White "Hacker, Jonas"]
[Black "Brunello, Sabino"]
[Result "1-0"]
[ECO "C54"]
[WhiteElo "2396"]
[BlackElo "2521"]
[Annotator "TA"]
[PlyCount "79"]
[EventDate "2022.05.25"]
[EventType "tourn"]
[EventCountry "DEN"]
[SourceTitle "playchess.com"]
[Source "ChessBase"]
[SourceQuality "1"]
[TimeControl "5400+30"]

{[%evp 17,79,0,13,0,11,11,18,16,14,19,18,24,16,22,58,62,71,71,70,68,76,69,68,65,513,514,499,510,510,489,484,506,577,480,602,608,679,614,716,679,795,794,888,885,843,726,791,756,731,0,747,598,612,735,732,593,818,817,912,902,845,816,829,799]} 1. e4 {[%emt 0:00:03]} e5 {[%emt 0:00:06]} 2. Nf3 {[%emt 0:00:05]} Nc6 {[%emt 0:00:03]} 3. Bc4 {[%emt 0:00:13]} Bc5 {[%emt 0:02:57]} 4. c3 {[%emt 0:00:11]} Nf6 {[%emt 0:00:06]} 5. d4 {[%emt 0:00:08]} exd4 {[%emt 0:00:21]} 6. e5 {[%emt 0:00:24]} d5 {[%emt 0:00:31]} 7. Bb5 {[%emt 0:00:14]} Ne4 {[%emt 0:00:07]} 8. cxd4 {[%emt 0:00:10]} Bb6 {[%emt 0:00:07]} 9. Nc3 {[%emt 0:00:26]} O-O {[%emt 0:00:25]} 10. Be3 {[%emt 0:00:25] C54: Giuoco Piano: 4 c3 Nf6, main lines with 5 d4 and 5 d3.} Nxc3 {[%emt 0:06:27]} 11. bxc3 {[%emt 0:00:12]} f6 {[%emt 0:00:03]} 12. Bxc6 {[%emt 0:03:24] The position is equal.} bxc6 {[%emt 0:00:03]} 13. Qa4 {[%emt 0:00:39]} Qe8 {[%emt 0:24:02][%cal Oc6c5] [#]} 14. exf6 $146 {[%emt 0:08:29]} ({Predecessor:} 14. O-O Bg4 15. exf6 Bxf3 16. gxf3 Rxf6 17. Qd1 Qf8 18. f4 Rg6+ 19. Kh1 Qf5 20. Qf3 {½-½ (31) Wohlfart,P-Zunke,J GER corr 1996}) 14... Rxf6 {[%emt 0:01:59]} 15. Ne5 {[%emt 0:01:17]} Qh5 {[%emt 0:06:21]} 16. O-O {[%emt 0:06:43]} c5 {[%emt 0:04:03]} 17. dxc5 {[%emt 0:03:58] White is more active.} Qxe5 {[%emt 0:00:27]} 18. cxb6 {[%emt 0:02:43]} cxb6 {[%emt 0:08:19]} 19. Bd4 {[%emt 0:02:45]} Qf4 {[%emt 0:00:18][%cal Oc8h3]} 20. Rae1 $36 {[%emt 0:14:31][%mdl 2048] White has good play.} Rg6 $2 {[%emt 0:20:02][%mdl 8192] Black is on the road to losing.} (20... Be6 $1 $14) 21. Re8+ $18 {[%emt 0:01:20]} Kf7 {[%emt 0:00:00] [#] And now ...Qf3 would win.} 22. Rf8+ $3 {[%emt 0:00:51][%mdl 512]} Kxf8 {[%emt 0:00:06] [#]} 23. Bxg7+ $1 {[%emt 0:00:27][%mdl 576] Discovered Attack} Kg8 {[%emt 0:02:38]} (23... Kxg7 24. Qxf4) 24. Qxf4 {[%emt 0:01:01][%csl Gg7][%cal Rf4f8]} Bh3 {[%emt 0:00:06] [#]} 25. g3 {[%emt 0:08:16]} Bxf1 {[%emt 0:04:41]} (25... Rxg7 26. Qe5) 26. Bd4 {[%emt 0:03:22]} ({Not} 26. Kxf1 Rxg7 27. Qd6 Rf7 $18) 26... Bc4 {[%emt 0:00:11]} 27. h4 {[%emt 0:01:31]} Rf8 {[%emt 0:03:35]} 28. Qe5 {[%emt 0:01:04] Hoping for Qh8+.} Kf7 {[%emt 0:00:32]} 29. Qc7+ {[%emt 0:01:30]} Ke6 {[%emt 0:00:13]} 30. Qxh7 {[%emt 0:01:47]} Bd3 {[%emt 0:00:10]} 31. Qc7 {[%emt 0:04:25]} Be4 {[%emt 0:01:33]} 32. Qc6+ {[%emt 0:11:42]} Ke7 {[%emt 0:00:16]} 33. Qc7+ {[%emt 0:00:30]} Ke6 {[%emt 0:00:01]} 34. a4 {[%emt 0:02:18] White is clearly winning.} Rf7 {[%emt 0:01:40]} 35. Qc8+ {[%emt 0:01:08]} Ke7 {[%emt 0:00:42]} 36. Be3 {[%emt 0:01:36]} Bf5 {[%emt 0:01:40]} 37. Qb8 {[%emt 0:01:20]} Rd6 {[%emt 0:04:47]} 38. Qxa7+ {[%emt 0:01:38]} Ke6 {[%emt 0:01:44]} 39. Qb8 {[%emt 0:00:28] Strongly threatening Bf4.} Be4 {[%emt 0:00:07]} 40. Bf4 {[%emt 0:01:04] Weighted Error Value: White=0.34/Black=0.66} 1-0

[Event "CCC-GM 2022"]
[Site "Ballerup"]
[Date "2022.05.29"]
[Round "9.4"]
[White "Haubro, Martin"]
[Black "Stefansson, Vignir Vatnar"]
[Result "0-1"]
[ECO "C42"]
[WhiteElo "2428"]
[BlackElo "2496"]
[Annotator "TA"]
[PlyCount "38"]
[EventDate "2022.05.25"]
[EventType "tourn"]
[EventCountry "DEN"]
[SourceTitle "playchess.com"]
[Source "ChessBase"]
[SourceQuality "1"]
[TimeControl "5400+30"]

{[%evp 12,38,54,55,54,37,23,-196,-202,-197,-210,-243,-250,-223,-233,-398,-275,-289,-289,-276,-274,-308,-315,-374,-385,-650,-651,-684,-672]} 1. e4 {[%emt 0:00:02]} e5 {[%emt 0:00:22]} 2. Nf3 {[%emt 0:00:05]} Nf6 {[%emt 0:00:12]} 3. Nxe5 {[%emt 0:00:10]} Nxe4 {[%emt 0:00:06]} 4. Qe2 {[%emt 0:03:24]} Qe7 {[%emt 0:00:10]} 5. Qxe4 {[%emt 0:01:01]} d6 {[%emt 0:00:08]} 6. d4 {[%emt 0:03:43]} dxe5 {[%emt 0:00:07]} 7. dxe5 {[%emt 0:04:19]} Nc6 {[%emt 0:00:09] C42: Petroff Defence: 3 Nxe5 and unusual White 3rd moves.} 8. Bf4 {[%emt 0:02:31] 8.Nc3 is the modern continuation.} g5 {[%emt 0:00:39]} 9. Bg3 {[%emt 0:01:15] [#]} (9. Bb5 $11 Bd7 10. e6 fxe6 11. Be3 (11. Bxc7 Rc8 $11)) 9... f5 $1 $19 {[%emt 0:00:07] Black is clearly better.} 10. Qe2 {[%emt 0:02:42]} f4 {[%emt 0:00:36] White must now prevent ...Bf5.} 11. Qh5+ {[%emt 0:00:04] [#]} Qf7 $1 {[%emt 0:01:32]} 12. Qxg5 {[%emt 0:00:41]} fxg3 {[%emt 0:00:13] [#]} 13. Qxg3 $146 {[%emt 0:05:29]} (13. hxg3 Bc5 14. f3) ({Predecessor:} 13. hxg3 Bg7 14. f4 Bf5 15. Nc3 Bxc2 16. Be2 Nd4 17. Bh5 Bg6 18. O-O-O Ne6 19. Qg4 Bxh5 20. Rxh5 {1-0 (48) Ljukin,S (2368)-Berdychevskaya,N (2208) Chess.com INT 2020}) 13... Bc5 {[%emt 0:00:35]} ({Worse is} 13... Qd5 14. Nc3 Qxe5+ 15. Qxe5+ Nxe5 16. f4 $17) 14. Nd2 {[%emt 0:03:00]} Rg8 {[%emt 0:03:01]} 15. Qf3 {[%emt 0:00:04]} Qxf3 {[%emt 0:02:20]} 16. Nxf3 {[%emt 0:00:05]} Bf5 {[%emt 0:00:12]} 17. c3 {[%emt 0:02:47]} O-O-O {[%emt 0:00:29]} 18. g3 $2 {[%emt 0:01:11]} (18. Rd1) 18... Be4 {[%emt 0:01:17]} 19. Bg2 {[%emt 0:00:03]} Rgf8 {[%emt 0:00:42] Black took control after the opening.  Weighted Error Value: White=0.71/Black=0.07 (flawless)} 0-1